Cogmind - Beta 13 @@@ ROGUE MODE // 2024.05.13 @ 22:18:06 Player: H3-RMN Result: Destroyed by P-70 Sage with Tesla Rifle Performance ------------- Evolutions (6) 3000 Regions Visited (29) 5800 Robots Destroyed (467) 2335 Value Destroyed (18272) 18272 Prototype IDs (74) 1480 Alien Tech Used (1) 200 Bonus (5550) 5550 TOTAL SCORE: 36637 Bonus ------- Triggered High Security 500 High Alert Combat Kills 2021 Follower Combat Kills 1391 Entered Garrisons 400 Entered DSFs 500 Aligned with FarCom 300 Met Imprinter 300 Acquired ECA 300 Met Zhirov 300 Friendly Fire -462 Cogmind --------- Core Integrity 0/1150 Matter 298/300 Energy 700/700 System Corruption 40% Temperature Cool (0) Movement Hovering (54) Location -4/Extension Parts ------- > --- POWER (2) -------- Vortex Chain Reactor > --- PROPULSION (4) --- Combat Linear Gravjet Combat Linear Gravjet Combat Linear Gravjet > --- UTILITY (9) ------ Advanced Quantum Shading Machine Advanced Launcher Guidance Computer Experimental Armor Integrity Analyzer Advanced Transmission Jammer Hardened Medium Armor Plating Hardened Medium Armor Plating Makeshift Hacking Suite Makeshift Hacking Suite Advanced Hacking Suite > --- WEAPON (4) ------- Centrium Greatsword Centrium Greatsword > --- INVENTORY (5) ---- Large Storage Unit Authchip [Weapon] Authchip [Weapon] Authchip [Weapon] Transdimensional Reconstructor Peak State ------------ > --- POWER ------------ Vortex Chain Reactor > --- PROPULSION ------- Combat Linear Gravjet Combat Linear Gravjet Combat Linear Gravjet > --- UTILITY ---------- Improved Energy Well Advanced Quantum Shading Machine Advanced Launcher Guidance Computer Experimental Armor Integrity Analyzer Hardened Medium Armor Plating Hardened Medium Armor Plating Makeshift Hacking Suite Makeshift Hacking Suite Advanced Hacking Suite > --- WEAPON ----------- Centrium Greatsword Centrium Greatsword > --- INVENTORY -------- Large Storage Unit Authchip [Weapon] Authchip [Weapon] Authchip [Weapon] Transdimensional Reconstructor [Rating: 136] Favorites ----------- Power Improved Deuterium Engine Engine Improved Deuterium Engine Power Core Fission Core Reactor Cold Fusion Reactor Propulsion Armored Treads Treads Armored Treads Leg Myomer Leg Wheel Armored Wheel Hover Unit Combat Linear Gravjet Flight Unit Impulse Thruster Array Utility Huge Storage Unit Device Advanced Heat Sink Storage Huge Storage Unit Processor Advanced Targeting Computer Hackware Makeshift Hacking Suite Protection Hardened Medium Armor Plating Weapon Proton Cannon Energy Gun Force Rifle Energy Cannon Proton Cannon Ballistic Gun Autogun Ballistic Cannon Antimatter Cannon Launcher Mini Grenade Launcher Special Weapon Plasma Cutter Impact Weapon Powered Hammer Slashing Weapon Centrium Greatsword Special Melee Weapon Datajack Build | -11 -10 -10 -9 -9 -9 -8 -8 -8 -8 -7 -7 -7 -7 -7 -7 -6 -6 -6 -6 -5 -5 -5 -5 -5 -4 -4 -4 -4 -4 ------- Run | Yrd Mat Min Mat Min Exi Min Mat Gar Mat Fac Was Fac Gar Fac DSF Fac Low Low Zio Pro Fac Upp Upp Zhi Pro Fac Was Fac Ext Slots Evolved 12 | . . . 2 . . . 2 . . 2 . . . . . 2 . . . . 2 . . . . 2 . . . Power 1 | . . . . . . . . . . . . . . . . 1 . . . . . . . . . . . . . Propulsion 2 | . . . 1 . . . . . . 1 . . . . . . . . . . . . . . . . . . . Utility 7 | . . . 1 . . . 1 . . 1 . . . . . 1 . . . . 2 . . . . 1 . . . Weapon 2 | . . . . . . . 1 . . . . . . . . . . . . . . . . . . 1 . . . Parts Attached 472 | 8 15 . 32 4 3 1 16 16 33 6 8 24 5 4 27 25 21 10 7 21 68 10 16 13 12 42 15 10 . Power 32 | 1 3 . 4 . . . 1 . 2 . . 1 . 1 1 4 3 . 1 2 2 . 1 2 . 2 1 . . Engine 21 | 1 3 . 4 . . . 1 . 2 . . 1 . 1 1 4 2 . 1 . . . . . . . . . . Core 4 | . . . . . . . . . . . . . . . . . 1 . . 1 . . 1 1 . . . . . Reactor 7 | . . . . . . . . . . . . . . . . . . . . 1 2 . . 1 . 2 1 . . Propulsion 80 | 3 2 . 7 1 . 1 3 3 6 3 . 7 . . 10 3 2 . . . 9 1 3 3 5 4 3 1 . Treads 35 | 1 1 . 5 . . 1 2 1 2 1 . 3 . . 8 . 2 . . . . 1 1 1 4 1 . . . Leg 3 | . . . . . . . . . . . . . . . . . . . . . . . . . 1 1 . 1 . Wheel 35 | 2 1 . 2 1 . . 1 2 4 2 . 3 . . 2 3 . . . . 9 . 2 1 . . . . . Hover 4 | . . . . . . . . . . . . 1 . . . . . . . . . . . . . . 3 . . Flight 3 | . . . . . . . . . . . . . . . . . . . . . . . . 1 . 2 . . . Utility 171 | 2 2 . 7 . 1 . 5 3 13 1 5 6 . 2 9 5 9 7 2 10 27 4 7 3 2 25 7 7 . Device 100 | 1 . . 3 . . . 3 1 9 1 5 3 . 2 3 3 7 6 1 6 20 2 4 . 1 14 2 3 . Storage 10 | 1 2 . 1 . 1 . . . 1 . . 1 . . . . . . . . 1 . . . . . . 2 . Processor 10 | . . . . . . . . . . . . 2 . . . 1 1 . . . 1 . . . . 2 3 . . Hackware 7 | . . . . . . . . . . . . . . . . . . . . . 1 . . . . 6 . . . Protection 44 | . . . 3 . . . 2 2 3 . . . . . 6 1 1 1 1 4 4 2 3 3 1 3 2 2 . Artifact . | . . . . . . . . . . . . . . . . . . . . . . . . . . . . . . Weapon 189 | 2 8 . 14 3 2 . 7 10 12 2 3 10 5 1 7 13 7 3 4 9 30 5 5 5 5 11 4 2 . Energy Gun 53 | 2 4 . 1 . . . 1 . 1 . . 3 1 1 1 3 2 . 1 2 12 1 1 3 2 8 3 . . Energy Cannon 21 | . . . 3 . . . 3 . . . . . . . 1 2 1 . . 2 8 . . 1 . . . . . Ballistic Gun 49 | . . . 7 1 1 . 2 6 5 2 2 5 1 . 4 3 1 . 2 1 . 2 1 1 1 . 1 . . Ballistic Cannon 9 | . . . . . . . . . . . . . . . . 2 . . . 2 3 . 1 . 1 . . . . Launcher 48 | . 4 . 3 2 . . 1 1 6 . 1 1 2 . 1 2 3 3 1 2 7 2 2 . 1 3 . . . Special Weapon 3 | . . . . . . . . 3 . . . . . . . . . . . . . . . . . . . . . Impact Weapon 2 | . . . . . . . . . . . . 1 1 . . . . . . . . . . . . . . . . Slashing Weapon 2 | . . . . . . . . . . . . . . . . . . . . . . . . . . . . 2 . Piercing Weapon . | . . . . . . . . . . . . . . . . . . . . . . . . . . . . . . Special Melee Weapon 2 | . . . . . 1 . . . . . . . . . . 1 . . . . . . . . . . . . . Unidentified Prototypes 24 | . . . 3 . . . 1 . . 1 1 1 . . . 2 . . 1 . 3 . . 4 . 2 3 2 . Corrupted Parts 8 | . . . . . . . . . . . . . . . . . . . . 2 . . . . 2 4 . . . System Corruption 58 | . . . . . . . . . . . . . . . . . . . . 4 . . . . 20 34 . . . Parts Lost 93 | . 2 . 1 . . . . 2 11 . 5 . . . 8 4 2 . . 1 15 8 2 . 8 24 . . . Power 6 | . . . . . . . . . . . 1 . . . . 2 . . . . . . . . . 3 . . . Propulsion 30 | . 1 . . . . . . 2 4 . 1 . . . 4 . . . . . 6 3 2 . 2 5 . . . Utility 28 | . 1 . . . . . . . 3 . 2 . . . 2 . 1 . . . 3 3 . . 4 9 . . . Weapon 29 | . . . 1 . . . . . 4 . 1 . . . 2 2 1 . . 1 6 2 . . 2 7 . . . Highest Loss Streak 22 | . 2 . 1 . . . . 2 8 . 4 . . . 5 2 1 . . 1 8 4 1 . 2 22 . . . To Critical Strikes 2 | . . . . . . . . . . . . . . . . . . . . . 1 . . . . 1 . . . Average Slot Usage (%) 92 | . 91 100 93 88 87 88 89 89 82 83 37 95 100 99 96 91 91 100 100 100 97 97 96 81 84 85 70 82 78 Engine 6 | . 14 14 11 11 11 11 9 9 9 7 3 7 7 7 7 11 12 6 6 2 . . . . . . . . . Core 2 | . . . . . . . . . . . . . . . . . . 6 6 6 3 . 2 5 5 4 . . . Reactor 1 | . . . . . . . . . . . . . . . . . . . . 3 6 11 8 5 5 4 5 5 5 Treads 17 | . 14 14 20 11 11 11 9 9 9 14 2 21 23 23 20 15 25 26 26 26 14 4 10 15 16 10 . . . Wheel 7 | . 12 14 12 22 22 22 17 17 16 15 2 6 7 7 8 10 . . . . 6 15 8 4 . . . . . Device 10 | . 6 . 6 . . . 9 9 7 6 5 8 . 4 12 8 5 13 13 13 20 22 20 17 20 27 5 9 10 Storage 7 | . 14 28 12 11 10 11 9 9 8 7 1 6 7 7 7 6 6 6 6 6 5 5 5 5 5 4 . . . Processor 7 | . . . . . . . . . . . . 5 15 13 7 10 13 13 13 13 13 5 5 5 5 6 13 10 10 Protection 7 | . . . 8 11 11 11 9 9 7 7 5 15 15 10 7 6 6 5 6 6 5 10 13 16 4 1 2 10 10 Energy Gun 5 | . 27 14 1 . . . . . . . 5 10 1 7 12 5 6 . 5 2 4 10 10 . 13 13 10 7 . Energy Cannon 5 | . . . 11 11 11 11 18 15 3 . . . . . 5 2 7 6 6 7 4 . . . . . . . . Ballistic Gun 5 | . . . 8 5 2 11 9 9 15 14 2 9 16 15 2 8 2 6 5 . . 4 3 . 1 4 3 1 . Launcher 1 | . . 14 . 5 . . . . 4 7 1 . 2 . 1 . . 5 . 2 1 . . . . . . . . Naked Turns 21 | . . . . . . . . . . . 21 . . . . . . . . . . . . . . . . . . Heaviest Build 248 | 11 33 33 162 162 222 222 236 239 242 248 247 109 104 106 127 135 136 134 136 147 160 132 149 155 152 153 69 69 62 Greatest Support 128 | 16 40 10 22 24 24 24 24 24 20 20 20 66 16 16 80 80 80 80 80 80 80 52 26 85 128 127 67 67 67 Greatest Overweight (x) 49 | 1 3 3 13 7 9 9 9 11 23 12 22 6 6 6 7 12 5 1 1 1 49 13 14 46 1 5 1 1 . Average Overweight (x) 3 | . 1 3 4 6 7 9 9 9 11 12 . 4 6 6 4 4 1 1 1 1 1 3 8 12 1 . . . . Largest Inventory Capacity 35 | 8 15 15 30 30 35 35 35 35 35 35 35 25 25 25 25 25 25 25 25 25 25 25 25 25 25 25 5 15 5 Average Capacity 25 | 7 9 15 19 30 32 35 35 35 32 35 12 23 25 25 25 25 25 25 25 25 25 25 25 25 25 23 5 5 5 Most Carried 35 | 5 9 9 30 30 34 35 35 35 35 35 34 25 25 25 25 25 25 25 25 25 25 25 25 25 25 25 5 5 5 Average Carried 24 | 2 7 8 17 29 29 34 34 34 28 31 11 15 25 25 24 24 24 24 24 24 24 22 24 24 24 23 5 5 5 Final Capacity 35 | 8 15 15 30 30 35 35 35 35 35 35 35 25 25 25 25 25 25 25 25 25 25 25 25 25 25 5 5 5 5 Final Carried 35 | 5 8 9 30 30 34 35 35 33 30 34 31 25 25 25 25 25 25 25 25 25 25 25 25 25 24 5 5 5 5 Class Distribution -------------------- 15% | Hauler-Skirmisher 14% | Derelict-Tank 12% | Tank 10% | Mutant 9% | Scavenger-Tank 8% | Hauler-Mutant 7% | Scavenger-Gunner 5% | Gunner 4% | Scavenger-Mutant 3% | Skirmisher 3% | Scavenger-Skirmisher Dominant Class ---------------- Mutant | -10/Materials Mutant | -10/Mines Mutant | -9/Materials Hauler-Mutant | -9/Mines Hauler-Mutant | -9/Exiles Hauler-Mutant | -8/Mines Hauler-Skirmisher | -8/Materials Hauler-Skirmisher | -8/Garrison Hauler-Skirmisher | -8/Materials Hauler-Skirmisher | -7/Factory Mutant | -7/Waste Tank | -7/Factory Tank | -7/Garrison Tank | -7/Factory Skirmisher | -7/DSF Scavenger-Skirmisher | -6/Factory Gunner | -6/Lower Caves Tank | -6/Lower Caves Derelict-Tank | -6/Zion Derelict-Tank | -5/Proximity Caves Scavenger-Tank | -5/Factory Scavenger-Tank | -5/Upper Caves Scavenger-Tank | -5/Upper Caves Scavenger-Mutant | -5/Zhirov Scavenger-Gunner | -4/Proximity Caves Scavenger-Gunner | -4/Factory Hacker-Gunner | -4/Waste Hacker-Mutant | -4/Factory Hacker-Mutant | -4/Extension Resources | -11 -10 -10 -9 -9 -9 -8 -8 -8 -8 -7 -7 -7 -7 -7 -7 -6 -6 -6 -6 -5 -5 -5 -5 -5 -4 -4 -4 -4 -4 ----------- Run | Yrd Mat Min Mat Min Exi Min Mat Gar Mat Fac Was Fac Gar Fac DSF Fac Low Low Zio Pro Fac Upp Upp Zhi Pro Fac Was Fac Ext Matter Collected 11369 | 270 411 29 579 63 20 12 304 488 1527 181 378 390 421 . 281 997 295 216 67 506 1769 297 358 172 357 485 358 83 55 Remotely 1246 | . . . . . . . 36 . 485 . . . . . . . . . . . 549 . 62 . . 114 . . . Salvage Created 22406 | 84 466 . 1120 44 . 12 780 1000 2049 373 . 681 619 . 397 2113 952 643 . 2599 3908 646 913 172 529 2162 . 89 55 Parts 1033 | 7 29 . 76 6 . 2 54 53 108 17 . 30 34 . 25 91 29 28 . 104 170 25 28 5 19 89 . 1 3 Haulers Intercepted 22 | . 1 . 5 . . . 2 . 3 2 . 3 . . . 2 . . . . 2 . . . . 1 . 1 . Recyclers Shooed 13 | 1 . . 1 1 . . . . 3 . . . . . . 2 . . . 1 2 . . . . 2 . . . Parts Field Recycled . | . . . . . . . . . . . . . . . . . . . . . . . . . . . . . . Retrieved Matter . | . . . . . . . . . . . . . . . . . . . . . . . . . . . . . . Parts Self-Destructed 119 | . . . . . . . . . . . . . . . . . 10 20 1 43 . 11 20 3 11 . . . . Prevented 108 | . . . . . . . . . . . . . . . . . 16 8 . 52 . 15 10 . 7 . . . . Kills | -11 -10 -10 -9 -9 -9 -8 -8 -8 -8 -7 -7 -7 -7 -7 -7 -6 -6 -6 -6 -5 -5 -5 -5 -5 -4 -4 -4 -4 -4 ------- Run | Yrd Mat Min Mat Min Exi Min Mat Gar Mat Fac Was Fac Gar Fac DSF Fac Low Low Zio Pro Fac Upp Upp Zhi Pro Fac Was Fac Ext Combat Hostiles Destroyed 352 | . 17 . 22 6 . . 13 18 34 9 . 5 17 . 8 22 16 13 . 39 54 10 13 . 10 25 . . 1 Melee 2 | . . . . . . . . . . . . 1 . . . . . . . . . . . . . . . . 1 Guns 95 | . 8 . 5 . . . 1 4 15 3 . 4 6 . 3 9 1 2 . 4 10 3 6 . 6 5 . . . Cannons 70 | . . . 9 . . . 7 12 1 . . . . . 1 4 4 3 . 11 16 2 . . . . . . . AOE 136 | . 9 . 8 6 . . 4 . 18 6 . . 11 . 3 3 7 8 . 15 20 3 7 . 2 6 . . . Classes Destroyed 25 | 2 6 . 3 . . . 2 1 4 . . 1 . . . . . 1 . 1 1 . 1 . . 2 . . . Worker 21 | . 1 . 1 . . 1 . . 5 1 . 2 . . . 2 . . . . 5 . . . . 3 . . . Builder 19 | . . . 2 . . . . . 4 . . 1 . . . 3 . . . . 8 . . . . 1 . . . Tunneler 6 | 2 1 . . . . . . . 1 . . . . . . . . . . . 2 . . . . . . . . Hauler 22 | . 1 . 5 . . . 2 . 3 2 . 3 . . . 2 . . . . 2 . . . . 1 . 1 . Recycler 21 | 1 . . 1 . . . 1 . 7 . . 2 . . . 2 . . . 2 4 . . . . 1 . . . Minesweeper 2 | . . . . . . . . . . . . . . . . . . 1 . . . 1 . . . . . . . Mechanic 3 | . . . . . . . . . 1 . . . . . . . . . . 1 1 . . . . . . . . Operator 6 | . 1 . 2 . . . . . . 1 . . . . . 1 . . . . 1 . . . . . . . . Watcher 14 | . 1 . 2 . . . 3 . 1 . . 1 . . . 3 . . . 2 1 . . . . . . . . Swarmer 71 | . 6 . 8 6 . . 4 . 3 . . . 6 . . . 4 3 . 8 11 1 6 . 4 1 . . . Cutter 3 | . . . . . . . . . 3 . . . . . . . . . . . . . . . . . . . . Saboteur 1 | . . . . . . . . . . . . . . . . . . . . . 1 . . . . . . . . Grunt 143 | . 11 . 6 . . . 4 5 16 8 . 3 10 . 3 12 5 9 . 16 20 4 4 . . 7 . . . Brawler 13 | . . . . . . . . . 2 1 . . . . . 1 3 1 . 2 2 1 . . . . . . . Duelist 15 | . . . 2 . . . . 2 5 . . . . . 1 . 2 . . 2 1 . . . . . . . . Protector 4 | . . . . . . . . . . . . . . . . . . . . 1 . . . . . 3 . . . Sentry 37 | . . . 6 . . . 3 7 1 . . 1 . . . 4 2 . . 6 3 2 1 . . 1 . . . Specialist 6 | . . . . . . . . . 2 . . . . . 1 . . . . . . . . . . 3 . . . Hunter 30 | . . . . . . . 1 3 1 . . . . . 2 2 . . . 4 8 2 1 . 4 2 . . . Programmer 19 | . . . . . . . . . . . . 1 1 . . 3 . . . . 8 . . . 1 4 . . 1 Heavy 3 | . . . . . . . 1 . 1 . . . . . 1 . . . . . . . . . . . . . . Behemoth 4 | . . . . . . . . 1 . . . . . . . . . . . 1 . . . . 1 1 . . . Striker 1 | . . . . . . . . . . . . . . . . . . . . . . . . . . 1 . . . Executioner 2 | . . . . . . . . . . . . . . . . . . . . . . . . . . 2 . . . Decomposer 1 | . . . . . . . . . . . . . . . . . . . . . . 1 . . . . . . . Packrat 3 | . . . . . . . . . . . . . . . . . . . . . . . 3 . . . . . . Mutant 1 | . . . . . . . . . . . . . . . . . . . . . . . 1 . . . . . . Best Kill Streak 19 | 3 12 . 6 3 . 1 5 4 15 4 . 3 6 . 5 4 9 4 . 8 19 3 5 . 4 14 . 1 1 Combat Bots Only 13 | . 9 . 4 3 . . 4 4 10 4 . 2 6 . 5 4 9 4 . 8 12 3 5 . 4 13 . . 1 Max Kills in Single Turn 7 | 1 4 . 3 3 . 1 5 2 4 2 . 1 2 . 2 2 3 2 . 3 7 2 4 . 2 4 . 1 1 Gunslinging 1 | . . . . . . . . 1 . . . . . . . . . . . . . . . . . . . . . Exploded 4 | . 3 . 3 3 . . 4 . 3 2 . . 2 . 2 2 3 2 . 3 3 2 4 . 2 4 . . . Melee 1 | . . . . . . . . . . . . 1 . . . . . . . . . . . . . . . . 1 Uniques/NPCs Destroyed . | . . . . . . . . . . . . . . . . . . . . . . . . . . . . . . Combat | -11 -10 -10 -9 -9 -9 -8 -8 -8 -8 -7 -7 -7 -7 -7 -7 -6 -6 -6 -6 -5 -5 -5 -5 -5 -4 -4 -4 -4 -4 -------- Run | Yrd Mat Min Mat Min Exi Min Mat Gar Mat Fac Was Fac Gar Fac DSF Fac Low Low Zio Pro Fac Upp Upp Zhi Pro Fac Was Fac Ext Hostile Shots Fired 1826 | . 70 2 61 12 . . 27 155 151 23 10 14 42 . 46 184 110 25 . 148 228 48 41 . 129 292 . 2 6 Missed 571 | . 13 1 25 6 . . 11 46 49 7 . 3 11 . 15 61 34 9 . 47 67 10 16 . 34 103 . . 3 Damage Taken 22765 | . 609 19 555 74 . . 342 1642 2292 252 567 160 556 77 1068 1701 993 302 . 1779 2569 741 553 . 1939 3884 . 27 64 Core 3067 | . 145 . 94 7 . . 79 108 344 . 135 15 83 . 40 71 110 56 . 129 278 42 17 . 147 1144 . . 23 Absorbed by Shields 912 | . . . . . . . . . . . . 3 . . . . . 110 . 448 351 . . . . . . . . Reduced by Siege Mode 20 | . . . . . . . . . . . . . . . . . . . . . . . . . 20 . . . . Redirected to Shielding 156 | . . . . . . . . . . . . . . . . . . . . . . . . . . 156 . . . Ignored by Resistances 275 | . . . . . . . . . . . . . . . . . . . . . 238 24 . . . 13 . . . Regen/Repaired (Parts) 1766 | . . . 113 . . . 57 . . . 16 5 . . . . . . 1301 . . . . . . . 274 . . Core Remaining (%) 55 | 100 . 42 . . . 74 . . 3 . . . . . 61 . . . . 56 . . . . 51 . . . . Volleys Fired 1058 | 7 58 5 79 3 . 1 28 53 126 34 15 29 31 . 39 84 31 21 1 116 139 21 28 18 34 54 2 1 . Largest 4 | 2 2 1 2 2 . 2 3 3 3 2 3 3 3 . 3 3 3 3 1 3 3 3 3 1 3 4 3 3 . Hottest 274 | 80 80 40 136 91 . 91 161 161 118 50 86 101 69 . 191 189 236 178 75 230 199 194 194 94 231 274 225 225 . Shots Fired 2091 | 14 107 5 149 4 . 2 82 156 238 56 30 80 73 . 51 189 54 32 1 166 243 34 66 16 91 143 7 2 . Gun 1324 | 14 98 5 73 1 . 1 27 69 183 44 25 80 64 . 33 136 28 11 1 43 91 17 62 16 72 121 7 2 . Cannon 589 | . . . 67 1 . 1 54 87 31 . . . . . 13 47 18 14 . 107 124 9 . . 16 . . . . Launcher 178 | . 9 . 9 2 . . 1 . 24 12 5 . 9 . 5 6 8 7 . 16 28 8 4 . 3 22 . . . Special . | . . . . . . . . . . . . . . . . . . . . . . . . . . . . . . Kinetic 826 | . . . 55 1 . 1 27 69 181 44 23 43 64 . 22 82 5 10 . 25 89 12 20 . 24 28 1 . . Thermal 752 | 14 98 5 85 1 . 1 54 87 33 . 2 16 . . . 29 23 1 1 37 65 13 42 16 64 57 6 2 . Explosive 86 | . 9 . 9 2 . . 1 . 21 12 5 . 5 . 5 . 1 4 . 4 6 . . . . 2 . . . Electromagnetic 427 | . . . . . . . . . 3 . . 21 4 . 24 78 25 17 . 100 83 9 4 . 3 56 . . . Robot Hit Streak 30 | 8 11 5 16 1 . 1 10 19 16 7 13 30 12 . 13 29 9 18 . 12 17 10 14 22 14 22 4 1 . Robot Miss Streak 7 | 1 5 1 7 2 . 1 4 6 6 5 1 6 4 . 3 3 3 1 . 3 4 1 3 1 4 5 2 . . Penetration Max 1 | . . . . . . . . . . . . . . . . 1 . . . . . . . . . . . . . Secondary Targets 10 | . . . . . . . . 1 2 . . . 2 . . 2 . . . . . . . . 1 2 . . . Max Gunslinging Chain 1 | . . . . . . . . 1 1 . . . 1 . . 1 . . . . . . . . 1 1 . . . Shots Hit Robots 1332 | 11 67 3 86 1 4 1 43 94 140 30 25 59 50 . 41 141 22 27 . 107 154 16 44 15 57 86 4 1 3 Core Hits 822 | 4 38 . 45 7 . 1 30 32 106 26 1 25 35 . 20 67 24 30 . 89 116 15 27 4 20 57 1 1 1 Critical Kills 12 | . . . . . . . 1 2 1 . . . . . . 5 . . . 1 . . 1 . . 1 . . . Critical Parts Destroyed 12 | . . . . . . . . . . . . 2 1 . . 1 . . . . 7 . 1 . . . . . . Critical Strikes 51 | . . . . . . . 1 2 1 . . 2 1 . . 7 . 2 . 2 15 1 6 . 7 4 . . . Burn 13 | . . . . . . . . . . . . . . . . . . . . . . . 4 . 7 2 . . . Meltdown 1 | . . . . . . . . 1 . . . . . . . . . . . . . . . . . . . . . Destroy 21 | . . . . . . . 1 1 1 . . . 1 . . 6 . . . 1 7 . 2 . . 1 . . . Blast 7 | . . . . . . . . . . . . . . . . . . . . 1 5 1 . . . . . . . Corrupt 7 | . . . . . . . . . . . . . . . . 1 . 2 . . 3 . . . . 1 . . . Smash 2 | . . . . . . . . . . . . 2 . . . . . . . . . . . . . . . . . Melee Attacks 24 | . . . . . 4 . . . . . . 5 7 . . . . . . . . . . . . . . 3 5 Impact 12 | . . . . . . . . . . . . 5 7 . . . . . . . . . . . . . . . . Slashing 8 | . . . . . . . . . . . . . . . . . . . . . . . . . . . . 3 5 Piercing . | . . . . . . . . . . . . . . . . . . . . . . . . . . . . . . Sneak Attacks 5 | . . . . . 4 . . . . . . . . . . . . . . . . . . . . . . . 1 Combat Hostiles 1 | . . . . . . . . . . . . . . . . . . . . . . . . . . . . . 1 Follow-up Attacks . | . . . . . . . . . . . . . . . . . . . . . . . . . . . . . . Damage Inflicted 47979 | 124 1282 37 2068 315 . 12 1055 1839 4660 1425 798 1014 1559 . 1390 4030 1530 1307 . 4815 8593 951 1475 523 1270 5495 97 42 273 Guns 16083 | 124 747 35 708 . . 12 208 539 1889 476 364 851 619 . 410 1780 120 135 . 708 1685 257 968 523 983 1803 97 42 . Cannons 10841 | . . . 933 . . . 662 1300 330 . . . . . 282 1155 378 389 . 2135 2923 307 . . 47 . . . . Explosions 20617 | . 535 . 427 315 . . 185 . 2441 949 434 . 940 . 698 1095 1032 783 . 1972 3985 387 507 . 240 3692 . . . Melee 436 | . . . . . . . . . . . . 163 . . . . . . . . . . . . . . . . 273 Ramming 2 | . . 2 . . . . . . . . . . . . . . . . . . . . . . . . . . . Kinetic 10468 | . . . 586 . . 12 208 539 1847 476 339 416 619 . 292 1218 25 110 . 579 1930 350 222 . 195 492 13 . . Thermal 13128 | 124 747 35 1055 . . . 662 1300 372 163 25 206 . . . 668 340 73 . 809 2129 195 746 523 835 1995 84 42 . Explosive 9699 | . 535 . 427 315 . . 185 . 2386 786 434 . 507 . 698 255 . 483 . 919 927 . . . . 842 . . . Electromagnetic 14246 | . . . . . . . . . 55 . . 229 433 . 400 1889 1165 641 . 2508 3607 406 507 . 240 2166 . . . Impact 163 | . . . . . . . . . . . . 163 . . . . . . . . . . . . . . . . . Slashing 273 | . . . . . . . . . . . . . . . . . . . . . . . . . . . . . 273 Piercing . | . . . . . . . . . . . . . . . . . . . . . . . . . . . . . . Highest Corruption 53 | . . . . . . . 3 3 3 . . 2 3 3 . 1 1 . . 5 14 30 31 31 53 40 40 40 40 Average Corruption 12 | . . . . . . . 3 3 3 . . 1 2 2 . 1 1 . . 1 8 28 30 31 31 6 40 40 40 Corruption Purged 5 | . . . . . . . . . . . . . . 3 . . 2 . . . . . . . . . . . . Corruption Blocked 30 | . . . . . . . . . . . . . . . . . . . . . . . . . . 30 . . . Effects 401 | . . . . . . . 18 28 23 . . 5 12 2 . 1 10 . . 8 44 49 48 40 58 15 17 11 12 Message Errors 87 | . . . . . . . 5 5 6 . . 2 . 1 . . 3 . . 3 9 10 8 10 10 3 4 5 3 Matter Fused 96 | . . . . . . . 2 5 5 . . . 3 . . . 1 . . 3 12 13 17 7 14 6 4 2 2 Heat Flow Errors 57 | . . . . . . . 5 3 3 . . 1 2 1 . . 1 . . . 5 6 7 7 9 1 1 1 4 Energy Discharges 37 | . . . . . . . 1 3 2 . . . 3 . . 1 1 . . . 4 3 3 4 8 1 3 . . Parts Rejected 7 | . . . . . . . . . 1 . . . . . . . . . . . 3 . . . 1 2 . . . Parts Fused 3 | . . . . . . . . 1 . . . . . . . . . . . . . . . 1 1 . . . . Data Loss (minor) 48 | . . . . . . . 4 7 2 . . 1 2 . . . 2 . . 1 2 8 2 6 6 1 1 . 3 Data Loss (major) 14 | . . . . . . . 1 1 1 . . . 1 . . . 1 . . . 2 . 2 2 2 . . 1 . Misfires 11 | . . . . . . . . 1 . . . 1 1 . . . . . . 1 1 3 1 . 1 . 1 . . Alerts 11 | . . . . . . . . . 1 . . . . . . . 1 . . . 3 2 2 1 . . 1 . . Misdirections 3 | . . . . . . . . . . . . . . . . . . . . . . . . . . . 2 1 . Weapon Failures 27 | . . . . . . . . 2 2 . . . . . . . . . . . 3 4 6 2 6 1 . 1 . Overload Shots . | . . . . . . . . . . . . . . . . . . . . . . . . . . . . . . Overflow Damage 911 | . 8 . 12 . . . . . 111 56 . 99 5 . 7 96 2 8 . 5 230 12 . . . 103 . . 157 Projectiles 116 | . . . 12 . . . . . . . . . . . . 7 2 . . 5 78 12 . . . . . . . Explosions 539 | . 8 . . . . . . . 111 56 . . 5 . 7 89 . 8 . . 152 . . . . 103 . . . Melee 256 | . . . . . . . . . . . . 99 . . . . . . . . . . . . . . . . 157 Knockbacks 18 | . . . . . . . . . . . . . . . . . . . . 3 13 1 . . 1 . . . . Impact . | . . . . . . . . . . . . . . . . . . . . . . . . . . . . . . Kinetic 17 | . . . . . . . . . . . . . . . . . . . . 3 12 1 . . 1 . . . . Secondary 1 | . . . . . . . . . . . . . . . . . . . . . 1 . . . . . . . . Self-Inflicted Damage 1333 | . 22 1 66 31 . . . . 154 . 106 . 58 . 108 163 66 75 . 159 161 100 21 . . 42 . . . Shots 50 | . 1 . 3 2 . . . . 4 . 2 . 2 . 5 2 4 4 . 7 4 6 1 . . 3 . . . Rammed 1 | . . 1 . . . . . . . . . . . . . . . . . . . . . . . . . . . Targets Rammed 1 | . . 1 . . . . . . . . . . . . . . . . . . . . . . . . . . . Kicked . | . . . . . . . . . . . . . . . . . . . . . . . . . . . . . . Crushed . | . . . . . . . . . . . . . . . . . . . . . . . . . . . . . . Highest Temperature 432 | 54 224 . 144 21 . 21 251 381 298 131 263 202 251 173 12 341 279 75 2 337 432 187 319 157 384 199 172 67 241 Average Temperature 78 | 24 82 . 38 14 . 14 42 112 64 35 145 58 36 98 8 74 85 23 1 80 103 68 89 54 97 103 81 43 117 Received Heat Transfer 4727 | . 258 9 201 . . . 36 378 324 144 . 45 81 . 27 474 321 72 . 625 515 63 63 . 414 677 . . . Effects 14 | . 1 . . . . . . 4 . . 1 . . . . 1 . . . 2 5 . . . . . . . . Shutdowns 1 | . . . . . . . . 1 . . . . . . . . . . . . . . . . . . . . . Energy Bleed 5 | . 1 . . . . . . . . . 1 . . . . 1 . . . . 2 . . . . . . . . Interference 8 | . . . . . . . . 3 . . . . . . . . . . . 2 3 . . . . . . . . Siege Activations 2 | . . . . . . . . . . . . . . . . . . . . . . . . . 2 . . . . Total Turns 31 | . . . . . . . . . . . . . . . . . . . . . . . . . 31 . . . . Longest Duration 28 | . . . . . . . . . . . . . . . . . . . . . . . . . 28 . . . . Robots Corrupted 46 | . . . . . . . . . . . . . . . 1 6 4 . . 9 9 2 . . . 15 . . . Combat Hostiles 44 | . . . . . . . . . . . . . . . 1 6 4 . . 9 8 2 . . . 14 . . . Parts Fried 110 | . . . . . . . . . . . . . 2 . 4 12 4 2 . 15 33 6 . . 1 31 . . . Impact Corruptions 4 | . . . . . . . . . . . . 4 . . . . . . . . . . . . . . . . . Robots Melted 5 | . . . . . . . 1 2 . . . . . . . . . . . . . . . . 2 . . . . Combat Hostiles 5 | . . . . . . . 1 2 . . . . . . . . . . . . . . . . 2 . . . . Parts Melted 46 | . 5 . 1 . . . 5 6 1 . . 1 . . . 2 1 . . . 1 1 9 . 9 4 . . . Heat Transferred 21001 | 275 1625 75 1903 . . . 1184 2257 648 150 74 592 . . . 853 398 87 . 1031 2328 296 1649 555 2344 2455 148 74 . Parts Sabotaged . | . . . . . . . . . . . . . . . . . . . . . . . . . . . . . . Parts Stolen . | . . . . . . . . . . . . . . . . . . . . . . . . . . . . . . Parts Stripped . | . . . . . . . . . . . . . . . . . . . . . . . . . . . . . . Power Chain Reactions 15 | . . . . . . . . . . . . . . . . . 2 1 . 4 3 1 . . . 4 . . . Alert | -11 -10 -10 -9 -9 -9 -8 -8 -8 -8 -7 -7 -7 -7 -7 -7 -6 -6 -6 -6 -5 -5 -5 -5 -5 -4 -4 -4 -4 -4 ------- Run | Yrd Mat Min Mat Min Exi Min Mat Gar Mat Fac Was Fac Gar Fac DSF Fac Low Low Zio Pro Fac Upp Upp Zhi Pro Fac Was Fac Ext Peak Influence 1783 | 15 540 170 217 212 . 5 209 579 1052 799 252 292 624 343 403 507 . . . . 1783 . . . . 339 146 214 134 Initial 457 | . 9 170 22 45 . . 1 . 282 457 237 151 88 327 240 211 . . . . 293 . . . . . 90 . 102 Average 269 | 3 292 117 101 148 . 1 88 248 722 722 230 174 332 334 260 284 . . . . 571 . . . . 122 41 126 117 Maximum Alert Level 5 | . 2 . 1 1 . . 1 2 3 3 1 1 2 1 2 2 . . . . 5 . . . . 1 . 1 . Low Security (%) 48 | 100 34 100 98 49 . 100 84 62 . . . 62 15 . . 12 . . . . 16 . . . . 75 100 93 100 Level 1 31 | . 31 . 1 50 . . 15 6 14 . 100 37 51 100 92 72 . . . . 44 . . . . 24 . 6 . Level 2 11 | . 33 . . . . . . 31 31 36 . . 33 . 7 15 . . . . 6 . . . . . . . . Level 3 6 | . . . . . . . . . 54 63 . . . . . . . . . . 17 . . . . . . . . Level 4 1 | . . . . . . . . . . . . . . . . . . . . . 10 . . . . . . . . Level 5 . | . . . . . . . . . . . . . . . . . . . . . 2 . . . . . . . . High Security . | . . . . . . . . . . . . . . . . . . . . . 3 . . . . . . . . Max Security . | . . . . . . . . . . . . . . . . . . . . . . . . . . . . . . Sterilizations 1 | . . . . . . . . . . . . . . . 1 . . . . . . . . . . . . . . Squads Dispatched 63 | . 5 . 1 . . . 3 . 9 2 . 4 . 1 1 7 . . . 3 16 . . . . 8 . 3 . Investigation 9 | . 2 . . . . . 2 . . . . 1 . 1 . . . . . 2 1 . . . . . . . . Extermination 11 | . . . . . . . . . . . . 2 . . . 3 . . . . 4 . . . . 2 . . . Reinforcement 27 | . 3 . 1 . . . 1 . 6 2 . 1 . . 1 2 . . . . 6 . . . . 3 . 1 . Assault 5 | . . . . . . . . . 2 . . . . . . . . . . 1 2 . . . . . . . . Garrison 11 | . . . . . . . . . 1 . . . . . . 2 . . . . 3 . . . . 3 . 2 . Intercept . | . . . . . . . . . . . . . . . . . . . . . . . . . . . . . . Searches Triggered . | . . . . . . . . . . . . . . . . . . . . . . . . . . . . . . Construction Impeded 5 | . . . . . . . . . 2 . . . . . . . . . . . 2 . . . . 1 . . . Haulers Reinforced 6 | . . . . . . . . . . 1 . . . . . 1 . . . . 3 . . . . 1 . . . Active Scanning Responses . | . . . . . . . . . . . . . . . . . . . . . . . . . . . . . . Cargo Convoy Interrupts 1 | . . . . . . . . . . . . . . . . . . . . . . . . . . 1 . . . Stealth | -11 -10 -10 -9 -9 -9 -8 -8 -8 -8 -7 -7 -7 -7 -7 -7 -6 -6 -6 -6 -5 -5 -5 -5 -5 -4 -4 -4 -4 -4 --------- Run | Yrd Mat Min Mat Min Exi Min Mat Gar Mat Fac Was Fac Gar Fac DSF Fac Low Low Zio Pro Fac Upp Upp Zhi Pro Fac Was Fac Ext Distress Signals 16 | . 1 . 4 . . . 2 . . . . 2 . . . . . . . 1 4 . . . . 1 . 1 . Communications Jammed . | . . . . . . . . . . . . . . . . . . . . . . . . . . . . . . Distress Signals . | . . . . . . . . . . . . . . . . . . . . . . . . . . . . . . Times Spotted 487 | . 24 2 41 6 . . 19 19 41 10 6 16 15 . 8 27 24 13 . 53 66 16 15 . 10 38 8 8 2 Peak Tracking Total 14 | . 5 2 5 3 . . 6 4 6 4 5 3 6 . 4 5 9 4 . 9 5 7 5 . 4 14 6 5 1 Tactical Retreats 24 | . 4 . 1 . . . . . . . 2 2 1 . 1 . 3 . . 1 4 1 1 . . 2 1 . . Traps | -11 -10 -10 -9 -9 -9 -8 -8 -8 -8 -7 -7 -7 -7 -7 -7 -6 -6 -6 -6 -5 -5 -5 -5 -5 -4 -4 -4 -4 -4 ------- Run | Yrd Mat Min Mat Min Exi Min Mat Gar Mat Fac Was Fac Gar Fac DSF Fac Low Low Zio Pro Fac Upp Upp Zhi Pro Fac Was Fac Ext Traps Triggered 12 | . . . 1 . . . 1 2 . 1 . . 1 1 . . . . . . 1 . . . . 3 . . 1 Indirectly 2 | . . . . . . . . . . . . . . . . . . . . . . . . . . 2 . . . Trap Hack Attempts 16 | . . . . . . . . . . . . . . . . 16 . . . . . . . . . . . . . Triggered . | . . . . . . . . . . . . . . . . . . . . . . . . . . . . . . Disarmed . | . . . . . . . . . . . . . . . . . . . . . . . . . . . . . . Reprogrammed 1 | . . . . . . . . . . . . . . . . 1 . . . . . . . . . . . . . Reused . | . . . . . . . . . . . . . . . . . . . . . . . . . . . . . . Traps Extracted 4 | . . . . . . . . . . . . . . . . 1 . 3 . . . . . . . . . . . Installed . | . . . . . . . . . . . . . . . . . . . . . . . . . . . . . . Triggered 3 | . . . . . . . . . . . . 1 . . . . . . . . . 2 . . . . . . . Most Traps Carried 6 | . . . . . . . . . . . . . . . . 1 1 6 6 6 6 6 6 6 6 . . . . Machines | -11 -10 -10 -9 -9 -9 -8 -8 -8 -8 -7 -7 -7 -7 -7 -7 -6 -6 -6 -6 -5 -5 -5 -5 -5 -4 -4 -4 -4 -4 ---------- Run | Yrd Mat Min Mat Min Exi Min Mat Gar Mat Fac Was Fac Gar Fac DSF Fac Low Low Zio Pro Fac Upp Upp Zhi Pro Fac Was Fac Ext Machines Disabled 53 | . 1 . . . . . . . 6 8 . 1 1 . 1 3 2 . . 3 16 1 . 1 . 9 . . . Max in Single Turn 8 | . 1 . . . . . . . 2 7 . . 1 . 1 2 2 . . 1 4 1 . 1 . 8 . . . Garrison Access 1 | . . . . . . . . . . . . . . . . . . . . . . . . . . 1 . . . Garrison Relay 4 | . . . . . . . . 3 . . . . 1 . . . . . . . . . . . . . . . . Phase Generator 1 | . . . . . . . . 1 . . . . . . . . . . . . . . . . . . . . . Machines Repaired . | . . . . . . . . . . . . . . . . . . . . . . . . . . . . . . Machines Dismantled 4 | . . . . . . . . 4 . . . . . . . . . . . . . . . . . . . . . Machines Sabotaged . | . . . . . . . . . . . . . . . . . . . . . . . . . . . . . . Overloaded Fab Kills . | . . . . . . . . . . . . . . . . . . . . . . . . . . . . . . Hacking | -11 -10 -10 -9 -9 -9 -8 -8 -8 -8 -7 -7 -7 -7 -7 -7 -6 -6 -6 -6 -5 -5 -5 -5 -5 -4 -4 -4 -4 -4 --------- Run | Yrd Mat Min Mat Min Exi Min Mat Gar Mat Fac Was Fac Gar Fac DSF Fac Low Low Zio Pro Fac Upp Upp Zhi Pro Fac Was Fac Ext Machines Accessed 74 | . 6 . 12 . 2 . 8 3 2 2 . 5 3 3 . 10 . . . 2 5 1 . 5 . 2 . 2 1 Terminals 39 | . 4 . 8 . . . 4 3 2 . . 2 3 2 . 5 . . . 1 3 . . . . . . 1 1 Fabricators 6 | . . . . . . . . . . 2 . . . 1 . 1 . . . 1 1 . . . . . . . . Repair Stations 3 | . . . 1 . . . 1 . . . . . . . . 1 . . . . . . . . . . . . . Recycling Units 6 | . 2 . 1 . . . 1 . . . . . . . . 1 . . . . . . . . . 1 . . . Scanalyzers 7 | . . . 2 . . . 1 . . . . 2 . . . 1 . . . . 1 . . . . . . . . Garrison Access 5 | . . . . . . . 1 . . . . 1 . . . 1 . . . . . . . . . 1 . 1 . Total Hacks 191 | . 16 . 42 . 5 . 27 6 6 4 . 12 6 6 . 21 . . . 3 10 1 . 18 . 5 . 2 1 Successful 102 | . 7 . 27 . 5 . 14 1 2 1 . 4 1 4 . 10 . . . 1 5 1 . 18 . 1 . . . Failed 87 | . 8 . 14 . . . 13 5 4 3 . 8 5 2 . 11 . . . 2 5 . . . . 4 . 2 1 Catastrophic 26 | . 1 . 3 . . . 3 3 1 1 . 1 2 . . 2 . . . 1 4 . . . . 1 . 2 1 Database Lockouts 2 | . 1 . 1 . . . . . . . . . . . . . . . . . . . . . . . . . . Manual 48 | . 10 . 9 . 1 . 13 1 3 . . 1 . 1 . 3 . . . . 2 . . . . 2 . 1 1 Terminals 87 | . 11 . 22 . . . 12 6 6 . . 4 6 3 . 10 . . . 1 3 . . . . 1 . 1 1 Fabricators 18 | . . . . . . . . . . 4 . . . 3 . 4 . . . 2 5 . . . . . . . . Repair Stations 6 | . . . 2 . . . 3 . . . . . . . . 1 . . . . . . . . . . . . . Recycling Units 18 | . 5 . 4 . . . 5 . . . . . . . . 2 . . . . . . . . . 2 . . . Scanalyzers 27 | . . . 14 . . . 4 . . . . 5 . . . 2 . . . . 2 . . . . . . . . Garrison Access 11 | . . . . . . . 3 . . . . 3 . . . 2 . . . . . . . . . 2 . 1 . Terminal Hacks 50 | . 3 . 7 . 5 . 5 1 1 . . . 1 2 . 4 . . . 1 1 1 . 18 . . . . . Record 10 | . . . . . 4 . . . . . . . . . . . . . . . . . . 6 . . . . . Part Schematic 4 | . . . . . . . . . . . . . . . . . . . . . . . . 4 . . . . . Robot Schematic 1 | . . . . . . . . . . . . . . 1 . . . . . . . . . . . . . . . Robot Analysis 8 | . 2 . 1 . . . . . . . . . . . . 1 . . . . . . . 4 . . . . . Prototype ID Bank 7 | . . . 1 . . . 2 . . . . . . . . . . . . . . . . 4 . . . . . Open Door 2 | . . . . . . . . . . . . . . . . . . . . 1 . 1 . . . . . . . Open DSF 3 | . . . . . . . . . . . . . . 1 . 1 . . . . 1 . . . . . . . . Emergency Access Points 2 | . . . . . . . . 1 . . . . 1 . . . . . . . . . . . . . . . . Unreport Threat 4 | . . . 2 . . . 2 . . . . . . . . . . . . . . . . . . . . . . Locate Traps 4 | . 1 . 1 . . . 1 . . . . . . . . 1 . . . . . . . . . . . . . Hauler Manifests 2 | . . . 1 . . . . . 1 . . . . . . . . . . . . . . . . . . . . Zone Layout 2 | . . . 1 . . . . . . . . . . . . 1 . . . . . . . . . . . . . Derelict Proto ID Bank 1 | . . . . . 1 . . . . . . . . . . . . . . . . . . . . . . . . Fabricator Hacks 6 | . . . . . . . . . . 1 . . . 1 . 1 . . . . 3 . . . . . . . . Load Schematic 4 | . . . . . . . . . . . . . . 1 . 1 . . . . 2 . . . . . . . . Build 2 | . . . . . . . . . . 1 . . . . . . . . . . 1 . . . . . . . . Repair Station Hacks 4 | . . . 2 . . . 2 . . . . . . . . . . . . . . . . . . . . . . Scan Component 2 | . . . 1 . . . 1 . . . . . . . . . . . . . . . . . . . . . . Repair 2 | . . . 1 . . . 1 . . . . . . . . . . . . . . . . . . . . . . Recycling Unit Hacks 5 | . 2 . 1 . . . 1 . . . . . . . . 1 . . . . . . . . . . . . . Report Inventory 5 | . 2 . 1 . . . 1 . . . . . . . . 1 . . . . . . . . . . . . . Scanalyzer 21 | . . . 13 . . . 3 . . . . 3 . . . 2 . . . . . . . . . . . . . Insert Component 12 | . . . 7 . . . 2 . . . . 2 . . . 1 . . . . . . . . . . . . . Analyze 9 | . . . 6 . . . 1 . . . . 1 . . . 1 . . . . . . . . . . . . . Garrison Access Hacks 4 | . . . . . . . 1 . . . . 1 . . . 1 . . . . . . . . . 1 . . . Unlock Access 3 | . . . . . . . 1 . . . . 1 . . . 1 . . . . . . . . . . . . . Seal Access 1 | . . . . . . . . . . . . . . . . . . . . . . . . . . 1 . . . Unauthorized Hacks 12 | . 2 . 4 . . . 2 . 1 . . . . 1 . 1 . . . . 1 . . . . . . . . Terminals 6 | . . . 4 . . . . . 1 . . . . . . 1 . . . . . . . . . . . . . Track 1 | . . . 1 . . . . . . . . . . . . . . . . . . . . . . . . . . Assimilate 2 | . . . 1 . . . . . . . . . . . . 1 . . . . . . . . . . . . . Botnet 2 | . . . 1 . . . . . 1 . . . . . . . . . . . . . . . . . . . . Operators 1 | . . . 1 . . . . . . . . . . . . . . . . . . . . . . . . . . Fabricators 2 | . . . . . . . . . . . . . . 1 . . . . . . 1 . . . . . . . . Recompile 2 | . . . . . . . . . . . . . . 1 . . . . . . 1 . . . . . . . . Repair Stations . | . . . . . . . . . . . . . . . . . . . . . . . . . . . . . . Recycling Units 3 | . 2 . . . . . 1 . . . . . . . . . . . . . . . . . . . . . . Mask 1 | . . . . . . . 1 . . . . . . . . . . . . . . . . . . . . . . Tunnel 2 | . 2 . . . . . . . . . . . . . . . . . . . . . . . . . . . . Scanalyzers . | . . . . . . . . . . . . . . . . . . . . . . . . . . . . . . Garrison Access 1 | . . . . . . . 1 . . . . . . . . . . . . . . . . . . . . . . Reprogram 1 | . . . . . . . 1 . . . . . . . . . . . . . . . . . . . . . . Data Cores Recovered 1 | . . . 1 . . . . . . . . . . . . . . . . . . . . . . . . . . Used 1 | . . . 1 . . . . . . . . . . . . . . . . . . . . . . . . . . Hacking Detections 61 | . 5 . 12 . . . 8 3 2 2 . 5 3 2 . 9 . . . 1 4 . . . . 2 . 2 1 Full Trace Events 3 | . . . . . . . . 1 . . . . 1 . . . . . . 1 . . . . . . . . . Feedback Events . | . . . . . . . . . . . . . . . . . . . . . . . . . . . . . . Feedback Blocked . | . . . . . . . . . . . . . . . . . . . . . . . . . . . . . . Robot Schematics Acquired 5 | . . . . . . . . . . . . . . 1 . . . . 4 . . . . . . . . . . Robots Built . | . . . . . . . . . . . . . . . . . . . . . . . . . . . . . . Authchips . | . . . . . . . . . . . . . . . . . . . . . . . . . . . . . . Time 134 | . . . . . . . . . . 134 . . . . . . . . . . . . . . . . . . . Total Robot Build Rating . | . . . . . . . . . . . . . . . . . . . . . . . . . . . . . . Part Schematics Acquired 25 | . . . 5 . . . 1 . . . . 1 . . . 1 . . 13 . . . . 4 . . . . . Parts Built 1 | . . . . . . . . . . . . . . . . . . . . . 1 . . . . . . . . Authchips 1 | . . . . . . . . . . . . . . . . . . . . . 1 . . . . . . . . Time 53 | . . . . . . . . . . . . . . . . . . . . . 53 . . . . . . . . Total Part Build Rating 6 | . . . . . . . . . . . . . . . . . . . . . 6 . . . . . . . . Parts Repaired 2 | . . . 1 . . . 1 . . . . . . . . . . . . . . . . . . . . . . Time 64 | . . . 32 . . . 32 . . . . . . . . . . . . . . . . . . . . . . Parts Recycled . | . . . . . . . . . . . . . . . . . . . . . . . . . . . . . . Recycled Matter . | . . . . . . . . . . . . . . . . . . . . . . . . . . . . . . Retrieved Matter . | . . . . . . . . . . . . . . . . . . . . . . . . . . . . . . Retrieved Components . | . . . . . . . . . . . . . . . . . . . . . . . . . . . . . . Parts Scanalyzed 10 | . . . 6 . . . 1 . . . . 2 . . . 1 . . . . . . . . . . . . . Part Schematics Acquired 8 | . . . 5 . . . 1 . . . . 1 . . . 1 . . . . . . . . . . . . . Parts Damaged 1 | . . . . . . . . . . . . 1 . . . . . . . . . . . . . . . . . Bothacking | -11 -10 -10 -9 -9 -9 -8 -8 -8 -8 -7 -7 -7 -7 -7 -7 -6 -6 -6 -6 -5 -5 -5 -5 -5 -4 -4 -4 -4 -4 ------------ Run | Yrd Mat Min Mat Min Exi Min Mat Gar Mat Fac Was Fac Gar Fac DSF Fac Low Low Zio Pro Fac Upp Upp Zhi Pro Fac Was Fac Ext Used RIF Installer . | . . . . . . . . . . . . . . . . . . . . . . . . . . . . . . Robots Hacked 4 | . . . . . 4 . . . . . . . . . . . . . . . . . . . . . . . . Non-combat 3 | . . . . . 3 . . . . . . . . . . . . . . . . . . . . . . . . Combat 1 | . . . . . 1 . . . . . . . . . . . . . . . . . . . . . . . . Robot Hacks Applied 4 | . . . . . 4 . . . . . . . . . . . . . . . . . . . . . . . . parse_system 4 | . . . . . 4 . . . . . . . . . . . . . . . . . . . . . . . . Relay Couplers Released 25 | . . . . . . . . 12 . . . . 8 . . . . . . . . . . . . 5 . . . Machine Destruction 19 | . . . . . . . . 12 . . . . 5 . . . . . . . . . . . . 2 . . . Programmers 6 | . . . . . . . . . . . . . 3 . . . . . . . . . . . . 3 . . . Fabnet Peak Effective % . | . . . . . . . . . . . . . . . . . . . . . . . . . . . . . . Robots Rewired 16 | . . . . . . . . . . . . . . . . . 2 . . 12 . 2 . . . . . . . Allies Hacked . | . . . . . . . . . . . . . . . . . . . . . . . . . . . . . . Hacks Repelled . | . . . . . . . . . . . . . . . . . . . . . . . . . . . . . . Allies | -11 -10 -10 -9 -9 -9 -8 -8 -8 -8 -7 -7 -7 -7 -7 -7 -6 -6 -6 -6 -5 -5 -5 -5 -5 -4 -4 -4 -4 -4 -------- Run | Yrd Mat Min Mat Min Exi Min Mat Gar Mat Fac Was Fac Gar Fac DSF Fac Low Low Zio Pro Fac Upp Upp Zhi Pro Fac Was Fac Ext Total Allies 71 | . . 3 1 2 . . 3 . . . 19 . . . . 1 2 . 4 12 3 2 . . . . 19 . . Largest Group 19 | . . 3 3 2 1 . 3 . . . 19 7 . . . 1 2 2 4 6 3 3 2 . . . 19 8 . Highest-Rated Group 684 | . . 40 40 39 8 . 48 . . . 475 211 . . . 10 59 59 109 202 101 93 58 . . . 684 269 . Highest-Rated Ally 50 | . . 16 16 31 8 . 16 . . . 35 35 . . . 10 30 30 31 41 41 31 29 . . . 50 46 . Warlord Squad Rendezvous 1 | . . . . . . . . . . . . . . . . . . . . . . . . . . 1 . . . Geek 1 | . . . . . . . . . . . . . . . . . . . . . . . . . . 1 . . . Total Orders 2 | . . . . . . . . . . . . . . . . . . . . . 2 . . . . . . . . EXPLORE 2 | . . . . . . . . . . . . . . . . . . . . . 2 . . . . . . . . Ally Attacks 455 | . . 7 28 4 . . 12 . . . 75 18 . . . . 6 3 . 38 7 23 10 . . . 165 59 . Total Damage 12287 | . . 75 221 21 . . 127 . . . 3414 503 . . . . 38 36 . 1019 251 392 153 . . . 4646 1391 . Kills 57 | . . 2 5 1 . . 2 . . . 16 6 . . . . 1 . . 4 2 2 2 . . . 7 7 . Allies Corrupted 3 | . . . . . . . . . . . . 2 . . . . . . . . 1 . . . . . . . . Allies Melted 1 | . . . . . . . . . . . . . . . . . . . . . . . . . . . . 1 . Intel | -11 -10 -10 -9 -9 -9 -8 -8 -8 -8 -7 -7 -7 -7 -7 -7 -6 -6 -6 -6 -5 -5 -5 -5 -5 -4 -4 -4 -4 -4 ------- Run | Yrd Mat Min Mat Min Exi Min Mat Gar Mat Fac Was Fac Gar Fac DSF Fac Low Low Zio Pro Fac Upp Upp Zhi Pro Fac Was Fac Ext Robot Analysis Total 8 | . 2 . 1 . . . . . . . . . . . . 1 . . . . . . . 4 . . . . . Derelict Logs Recovered 14 | . . 1 . 1 . . . . . . . . . . . . 2 2 2 2 . 2 . . 2 . . . . Drone Launches 2 | . . . . . . . . . . . . . . . . . . . . . 2 . . . . . . . . Drone Recoveries . | . . . . . . . . . . . . . . . . . . . . . . . . . . . . . . Exploration | -11 -10 -10 -9 -9 -9 -8 -8 -8 -8 -7 -7 -7 -7 -7 -7 -6 -6 -6 -6 -5 -5 -5 -5 -5 -4 -4 -4 -4 -4 ------------- Run | Yrd Mat Min Mat Min Exi Min Mat Gar Mat Fac Was Fac Gar Fac DSF Fac Low Low Zio Pro Fac Upp Upp Zhi Pro Fac Was Fac Ext Turns Passed 31612 | 92 608 673 1662 395 1025 580 1627 1757 1134 492 263 1290 967 233 1065 1659 1792 1490 2621 3255 1648 869 877 873 991 1020 258 176 220 Spaces Moved 12846 | 57 357 478 796 204 492 130 590 643 303 156 251 542 291 119 126 705 627 530 1039 1130 518 557 368 284 352 429 291 194 287 Core 194 | 3 . . . . . . . . . . 167 . . . . . . . . . 1 . . 1 . 22 . . . Treads 4502 | . 4 . 16 . . 43 . . 1 . . 6 . . 29 116 622 530 1039 1130 305 . . 6 352 303 . . . Legs . | . . . . . . . . . . . . . . . . . . . . . . . . . . . . . . Wheels 7112 | 54 353 478 780 204 492 87 590 643 302 156 10 448 291 119 97 589 5 . . . 212 557 368 277 . . . . . Hover 808 | . . . . . . . . . . . 74 88 . . . . . . . . . . . . . . 165 194 287 Flight 230 | . . . . . . . . . . . . . . . . . . . . . . . . . . 104 126 . . Fastest Speed 42 | 50 95 125 95 180 90 225 225 225 95 260 50 65 190 190 131 160 160 250 250 250 120 120 165 243 240 42 45 54 54 Average Speed 197 | 95 98 125 156 185 200 441 225 229 247 260 66 167 190 190 182 178 249 250 250 250 204 136 212 283 242 184 65 65 54 Slowest Speed 2500 | 100 160 125 285 190 225 880 225 245 425 260 410 465 190 190 480 260 250 250 250 250 2500 275 290 2350 243 300 154 154 54 Overloaded Moves . | . . . . . . . . . . . . . . . . . . . . . . . . . . . . . . Propulsion Burnouts . | . . . . . . . . . . . . . . . . . . . . . . . . . . . . . . Robots Hopped . | . . . . . . . . . . . . . . . . . . . . . . . . . . . . . . Cave-ins Triggered . | . . . . . . . . . . . . . . . . . . . . . . . . . . . . . . Exploration Rate (%) 50 | 4 63 95 83 34 70 30 51 71 34 5 95 19 42 3 82 19 63 66 86 88 19 68 60 61 52 14 86 7 37 Regions Visited 29 Branch Regions 13 Pre-discovered Areas 14 | . 2 . . . 1 . . . . . . . . . . . 1 1 4 2 . . . 3 . . . . . Known Exits Taken 11 | . . . . . . 1 1 . . . . 1 . 1 . 1 1 1 1 1 1 1 . . . . . . . Unknown Exits Taken 11 | 1 1 1 1 1 1 . . . 1 . . . . . . . . . . . . . 1 1 1 . . 1 . Scrap Searched 24 | . . 1 . 1 . . . . . . . . . . . . 10 1 3 2 . 4 1 . 1 . . . . Spaces Dug 94 | . . . 18 11 . . 8 . 8 3 . . 7 . . . 9 . . 2 21 3 . . . . . 3 1 Terrain Destroyed 610 | . 21 . 27 19 . . 8 . 92 65 37 . 7 . 21 19 31 39 . 36 135 4 3 . 5 37 . 3 1 Melee 4 | . . . . . . . . . . . . . . . . . . . . . . . . . . . . 3 1 Projectile 49 | . . . . . . . . . . . . . . . . 3 9 . . 5 23 1 3 . 5 . . . . AOE 557 | . 21 . 27 19 . . 8 . 92 65 37 . 7 . 21 16 22 39 . 31 112 3 . . . 37 . . . Terrain Rammed . | . . . . . . . . . . . . . . . . . . . . . . . . . . . . . . Walls Destroyed . | . . . . . . . . . . . . . . . . . . . . . . . . . . . . . . Machines Disabled . | . . . . . . . . . . . . . . . . . . . . . . . . . . . . . . Actions | -11 -10 -10 -9 -9 -9 -8 -8 -8 -8 -7 -7 -7 -7 -7 -7 -6 -6 -6 -6 -5 -5 -5 -5 -5 -4 -4 -4 -4 -4 --------- Run | Yrd Mat Min Mat Min Exi Min Mat Gar Mat Fac Was Fac Gar Fac DSF Fac Low Low Zio Pro Fac Upp Upp Zhi Pro Fac Was Fac Ext Total 17452 | 77 503 548 1071 217 531 137 849 797 536 203 329 854 646 126 920 956 808 663 1063 1405 857 637 419 345 440 586 351 235 343 Wait 2301 | . 60 64 100 4 . . 172 30 24 . 40 226 305 . 689 108 96 98 9 . 96 26 . 2 32 29 38 14 39 Move 12819 | 56 356 477 795 203 491 129 589 641 302 156 250 542 290 118 125 704 626 529 1038 1129 517 556 367 283 351 429 290 193 287 Hop . | . . . . . . . . . . . . . . . . . . . . . . . . . . . . . . Pick Up 272 | 5 7 1 32 1 29 3 20 9 38 5 9 19 . 1 16 8 5 3 3 6 17 8 1 10 6 9 . 1 . Fast Attach 151 | 7 1 . 10 . 1 . 3 1 5 1 . 12 . 2 11 6 5 . 1 3 20 . 9 10 2 18 13 10 . Attach 84 | . 2 . 3 . 1 . 2 3 11 2 7 . . . 5 4 3 1 . 2 13 6 . 2 4 13 . . . Detach 16 | . . . 3 . . . . . 4 1 2 2 . . 1 1 . . . . 1 . . . . 1 . . . Swap 239 | 1 12 . 20 4 1 1 11 12 17 3 1 12 5 2 11 15 13 9 6 16 35 4 7 2 6 11 2 . . Drop 269 | 1 7 . 29 2 4 3 24 13 9 1 5 7 . 3 23 10 12 2 5 16 19 3 7 18 5 22 6 13 . Fire 1058 | 7 58 5 79 3 . 1 28 53 126 34 15 29 31 . 39 84 31 21 1 116 139 21 28 18 34 54 2 1 . Melee 23 | . . . . . 4 . . . . . . 5 7 . . . . . . . . . . . . . . 3 4 Ram 1 | . . 1 . . . . . . . . . . . . . . . . . . . . . . . . . . . Kick . | . . . . . . . . . . . . . . . . . . . . . . . . . . . . . . Crush . | . . . . . . . . . . . . . . . . . . . . . . . . . . . . . . Escape Stasis 37 | . . . . . . . . 16 . . . . 8 . . . . . . . . . . . . . . . 13 Rewire 147 | . . . . . . . . . . . . . . . . . 17 . . 117 . 13 . . . . . . . Trap 16 | . . . . . . . . . . . . . . . . 16 . . . . . . . . . . . . . Miscellaneous 19 | . . . . . . . . 19 . . . . . . . . . . . . . . . . . . . . . Route ------- -11/Scrapyard -10/Materials (discovered 2 exits: *Mat / [*Min]) -10/Mines (discovered 2 exits: *Mat x2) -9/Materials (discovered 5 exits: *Mat x3 / [*Min x2]) -9/Mines -9/Exiles -8/Mines -8/Materials (discovered 2 exits: *Fac / Gar) -8/Garrison (discovered 3 exits: *Mat x3) -8/Materials -7/Factory -7/Waste -7/Factory (discovered 2 exits: *Fac / Gar) -7/Garrison -7/Factory (discovered 2 exits: *Low / DSF) -7/DSF -6/Factory (discovered 3 exits: *Fac / *Low / Gar) -6/Lower Caves -6/Lower Caves -6/Zion -5/Proximity Caves -5/Factory -5/Upper Caves -5/Upper Caves (discovered 2 exits: *Fac / *Zhi) -5/Zhirov -4/Proximity Caves -4/Factory -4/Waste -4/Factory -4/Extension History --------- Turn | Location | Event 15 | -11/Scrapyard | Discovered new exit (range 16) 93 | -11/Scrapyard | Entered Materials 305 | -10/Materials | Build established: Mutant 348 | -10/Materials | Destroyed 9 combat bots 548 | -10/Materials | Discovered new exit (range 3) 591 | -10/Materials | Discovered new exit (range 13) 610 | -10/Materials | Central database locked down 645 | -10/Materials | Core integrity fell below 50% 701 | -10/Materials | Entered Mines 774 | -10/Mines | Assisted by bots powering up and referring to "LRC-V3" 839 | -10/Mines | Discovered new exit (range 9) 870 | -10/Mines | Discovered new exit (range 15) 1080 | -10/Mines | Learned location of 1 exit from Materials 1374 | -10/Mines | Entered Materials 1374 | -9/Materials | Accompanied by 3 allies 1374 | -9/Materials | Evolved 2 slots: Propulsion x1, Utility x1 1375 | -9/Materials | Identified exit to Materials 1874 | -9/Materials | Build established: Scavenger-Mutant 1899 | -9/Materials | Discovered new exit (range 16) 2016 | -9/Materials | Discovered new exit (range 16) 2153 | -9/Materials | Discovered exit to Materials (range 9) 2254 | -9/Materials | Build established: Mutant 2337 | -9/Materials | Discovered exit to Materials (range 16) 2337 | -9/Materials | Central database locked down 2834 | -9/Materials | Build established: Hauler-Mutant 2948 | -9/Materials | Repaired Hrd. Light Armor Plating 3036 | -9/Materials | Entered Mines 3043 | -9/Mines | Met a Derelict bent on vengeance 3082 | -9/Mines | Deemed a non-threat by the Exiles lab entrance 3082 | -9/Mines | Discovered new exit (range 5) 3183 | -9/Mines | Learned Materials emergency access door positions 3349 | -9/Mines | Assembled infested the area 3431 | -9/Mines | Entered Exiles 3431 | -9/Exiles | Accompanied by 1 ally 3480 | -9/Exiles | Met 8R-AWN 3508 | -9/Exiles | Met EX-HEX 3566 | -9/Exiles | Met EX-BIN 3617 | -9/Exiles | Met EX-DEC 3666 | -9/Exiles | Learned location of Zion (-6) 4115 | -9/Exiles | Aligned with FarCom system 4117 | -9/Exiles | Given EX-Vault access code 4169 | -9/Exiles | Opened EX-Vault 4190 | -9/Exiles | Found Cloak of Protection 4236 | -9/Exiles | Warned to stay clear of 0b10 Research branches 4426 | -9/Exiles | Discovered new exit (range 14) 4456 | -9/Exiles | Left Exiles lab with Cloak of Protection 4456 | -9/Exiles | Entered Mines 4746 | -8/Mines | Discovered exit to Materials (range 8) 5036 | -8/Mines | Entered Materials 5036 | -8/Materials | Evolved 2 slots: Utility x1, Weapon x1 5113 | -8/Materials | Identified exit to Garrison 5351 | -8/Materials | Build established: Hauler-Skirmisher 5489 | -8/Materials | Lost 3 allies 6217 | -8/Materials | Repaired Arm. Wheel 6319 | -8/Materials | Discovered new exit (range 9) 6663 | -8/Materials | Entered Garrison 6768 | -8/Garrison | Spotted B-75 Beast 6833 | -8/Garrison | Destroyed B-75 Beast 6901 | -8/Garrison | Phase Generator disabled 6943 | -8/Garrison | Triggered checkpoint 7427 | -8/Garrison | Triggered checkpoint 7473 | -8/Garrison | Garrison Relay disabled 7525 | -8/Garrison | Garrison Relay disabled 7582 | -8/Garrison | Discovered new exit (range 10) 7755 | -8/Garrison | Triggered checkpoint 7997 | -8/Garrison | Discovered new exit (range 9) 8113 | -8/Garrison | Triggered checkpoint 8124 | -8/Garrison | Discovered new exit (range 3) 8227 | -8/Garrison | Garrison Relay disabled 8383 | -8/Garrison | Attempted to access garrison exit controls, blocked by remote lockdown 8420 | -8/Garrison | Entered Materials 8656 | -8/Materials | Garrison activated, responded to threat 8820 | -8/Materials | First assault squad dispatched 8904 | -8/Materials | Core integrity fell below 50% 8959 | -8/Materials | Destroyed 8 combat bots 9085 | -8/Materials | Core integrity fell below 20% 9165 | -8/Materials | Lost 8 parts (3n2u3w) 9170 | -8/Materials | Destroyed 10 combat bots 9523 | -8/Materials | Discovered new exit (range 13) 9554 | -8/Materials | Entered Factory 9554 | -7/Factory | Evolved 2 slots: Propulsion x1, Utility x1 10046 | -7/Factory | Sucked down chute 10046 | -7/Factory | Entered Waste 10065 | -7/Waste | Spotted C-40 Crusher 10084 | -7/Waste | Crushed by Compactor (1 part destroyed, 1 dropped) 10087 | -7/Waste | Crushed by Compactor (0 parts destroyed, 1 dropped) 10090 | -7/Waste | Crushed by Compactor (0 parts destroyed, 1 dropped) 10096 | -7/Waste | Crushed by Compactor (1 part destroyed, 1 dropped) 10099 | -7/Waste | Crushed by Compactor (0 parts destroyed, 2 dropped) 10102 | -7/Waste | Crushed by Compactor (0 parts destroyed, 1 dropped) 10108 | -7/Waste | Crushed by Compactor (1 part destroyed) 10110 | -7/Waste | Released all parts (2) 10123 | -7/Waste | Spotted C-40 Crusher 10131 | -7/Waste | Spotted C-40 Crusher 10139 | -7/Waste | Lost 4 parts (1p1n1u1w) 10139 | -7/Waste | Spotted C-40 Crusher 10148 | -7/Waste | Found Prototype Launcher 10154 | -7/Waste | Spotted C-40 Crusher 10155 | -7/Waste | Crushed by Compactor (1 part destroyed) 10174 | -7/Waste | Discovered new exit (range 16) 10175 | -7/Waste | Spotted C-40 Crusher 10184 | -7/Waste | Warlord forces began an assault 10220 | -7/Waste | Allies destroyed C-40 Crusher 10224 | -7/Waste | Allies destroyed C-40 Crusher 10232 | -7/Waste | Allies destroyed C-40 Crusher 10234 | -7/Waste | Allies destroyed C-40 Crusher 10239 | -7/Waste | Allies destroyed C-40 Crusher 10244 | -7/Waste | Identified Tesla Bomb Launcher 10270 | -7/Waste | Lost 12 allies 10309 | -7/Waste | Entered Factory 10309 | -7/Factory | Accompanied by 7 allies 10426 | -7/Factory | Build established: Mutant 10989 | -7/Factory | Lost 4 allies 11097 | -7/Factory | Build established: Tank 11482 | -7/Factory | Discovered new exit (range 15) 11513 | -7/Factory | Identified exit to Factory 11599 | -7/Factory | Identified exit to Garrison 11599 | -7/Factory | Entered Garrison 12145 | -7/Garrison | Triggered checkpoint 12267 | -7/Garrison | Triggered checkpoint 12384 | -7/Garrison | Discovered new exit (range 12) 12472 | -7/Garrison | Garrison Relay disabled 12563 | -7/Garrison | Identified exit to Factory 12566 | -7/Garrison | Entered Factory 12579 | -7/Factory | Discovered new exit (range 16) 12606 | -7/Factory | Identified exit to Lower Caves 12711 | -7/Factory | Identified exit to DSF 12799 | -7/Factory | Entered DSF 12977 | -7/DSF | Build established: Skirmisher 13530 | -7/DSF | Additional patrols routed to DSF 13573 | -7/DSF | Lost 5 parts (3n2u) 13715 | -7/DSF | Discovered exit to Factory (range 14) 13801 | -7/DSF | Sterilization system engaged 13811 | -7/DSF | Lost 3 parts (1n2w) 13821 | -7/DSF | Ambient heat levels rising (+10) 13836 | -7/DSF | Ambient heat levels rising (+10) 13851 | -7/DSF | Ambient heat levels rising (+10) 13864 | -7/DSF | Entered Factory 13864 | -6/Factory | Evolved 2 slots: Power x1, Utility x1 14264 | -6/Factory | Build established: Scavenger-Gunner 14342 | -6/Factory | Garrison activated, responded to threat 14361 | -6/Factory | Discovered new exit (range 16) 14374 | -6/Factory | Identified exit to Garrison 14393 | -6/Factory | Identified exit to Factory 14469 | -6/Factory | Garrison activated, responded to threat 14701 | -6/Factory | Build established: Scavenger-Skirmisher 15475 | -6/Factory | Discovered new exit (range 7) 15485 | -6/Factory | Identified exit to Lower Caves 15523 | -6/Factory | Entered Lower Caves 15529 | -6/Lower Caves | Met a Warlord Commander 15530 | -6/Lower Caves | Learned location of Warlord (-4) 15531 | -6/Lower Caves | Warlord Commander delivered Encrypted Comm Array 15534 | -6/Lower Caves | Found Encrypted Comm Array 15550 | -6/Lower Caves | Identified exit to Lower Caves 15599 | -6/Lower Caves | Encountered a Warlord checkpoint 15834 | -6/Lower Caves | Build established: Gunner 16115 | -6/Lower Caves | Learned 8 Factory zone layouts 16119 | -6/Lower Caves | Attracted the attention of an 0b10 checkpoint 16508 | -6/Lower Caves | Build established: Mutant 16826 | -6/Lower Caves | Build established: Gunner 16973 | -6/Lower Caves | Attracted the attention of an 0b10 outpost 17013 | -6/Lower Caves | Destroyed 9 combat bots 17315 | -6/Lower Caves | Entered another Lower Caves area 17315 | -6/Lower Caves | Accompanied by 2 allies 17616 | -6/Lower Caves | Build established: Tank 17973 | -6/Lower Caves | Learned Factory stockpile data 18089 | -6/Lower Caves | Learned location of Extension (-4) 18105 | -6/Lower Caves | Encountered a Warlord checkpoint 18745 | -6/Lower Caves | Discovered new exit (range 11) 18767 | -6/Lower Caves | Identified exit to Zion 18805 | -6/Lower Caves | Entered Zion 19067 | -6/Zion | Found Prototype Device 19068 | -6/Zion | Identified Phasing AFG 19106 | -6/Zion | Discovered new exit (range 8) 19123 | -6/Zion | Identified exit to Proximity Caves 19336 | -6/Zion | Learned Factory emergency access door positions 19620 | -6/Zion | Learned location of Quarantine (-2) 19880 | -6/Zion | Build established: Derelict-Tank 20382 | -6/Zion | Gained Derelict followers 20654 | -6/Zion | Learned Factory stockpile data 20744 | -6/Zion | Rebuked by Imprinter 21207 | -6/Zion | Visited the Megawrench Repair Shop 21207 | -6/Zion | Megawrench repaired 13 parts 21426 | -6/Zion | Entered Proximity Caves 21426 | -5/Proximity Caves | Accompanied by 4 allies 21466 | -5/Proximity Caves | Learned location of Armory (-4) 21623 | -5/Proximity Caves | Attracted the attention of an 0b10 checkpoint 21871 | -5/Proximity Caves | Spotted B-75 Beast 21872 | -5/Proximity Caves | Entered a huge 0b10 base via the front door 21903 | -5/Proximity Caves | Destroyed B-75 Beast 23739 | -5/Proximity Caves | Attracted the attention of an 0b10 outpost 23769 | -5/Proximity Caves | Destroyed 8 combat bots 24110 | -5/Proximity Caves | Discovered exit to Factory (range 6) 24135 | -5/Proximity Caves | Lost 5 allies 24681 | -5/Proximity Caves | Entered Factory 24681 | -5/Factory | Accompanied by 3 allies 24681 | -5/Factory | Evolved 2 slots: Utility x2 24682 | -5/Factory | Identified exit to Upper Caves 24804 | -5/Factory | Identified exit to DSF 24914 | -5/Factory | Build established: Scavenger-Tank 25222 | -5/Factory | Fabricated Lrn. Proton Cannon? 25574 | -5/Factory | Garrison activated, responded to threat 25732 | -5/Factory | System corruption reached 10% 25819 | -5/Factory | Destroyed 12 combat bots 25823 | -5/Factory | Lost 8 parts (4n3u1w) 26144 | -5/Factory | Build established: Scavenger-Gunner 26176 | -5/Factory | Destroyed 7 combat bots 26181 | -5/Factory | First assault squad dispatched 26273 | -5/Factory | High security lockdown imminent 26311 | -5/Factory | Allied Derelicts emerged from ambush trap array 26329 | -5/Factory | Entered Upper Caves 26329 | -5/Upper Caves | Accompanied by 3 allies 26332 | -5/Upper Caves | Learned Factory emergency access door positions 26339 | -5/Upper Caves | Attracted the attention of an 0b10 outpost 26376 | -5/Upper Caves | Lost 4 parts (1n2u1w) 26404 | -5/Upper Caves | Lost 3 allies 26705 | -5/Upper Caves | Build established: Scavenger-Tank 26712 | -5/Upper Caves | Spotted B-75 Beast 26856 | -5/Upper Caves | Identified exit to Upper Caves 27018 | -5/Upper Caves | Attracted the attention of an 0b10 checkpoint 27022 | -5/Upper Caves | System corruption reached 30% 27198 | -5/Upper Caves | Entered another Upper Caves area 27198 | -5/Upper Caves | Accompanied by 2 allies 27234 | -5/Upper Caves | Discovered new exit (range 14) 27554 | -5/Upper Caves | Attracted the attention of an 0b10 checkpoint 27598 | -5/Upper Caves | Attacked by a delusional Derelict stockpiling parts 27872 | -5/Upper Caves | Discovered new exit (range 3) 28075 | -5/Upper Caves | Entered Zhirov 28077 | -5/Zhirov | Discovered new exit (range 3) 28126 | -5/Zhirov | Met Zhirov 28179 | -5/Zhirov | Learned location of Testing (-3) 28179 | -5/Zhirov | Learned location of Command (-1) 28223 | -5/Zhirov | Zhirov requested help retrieving the SGEMP Prototype 28287 | -5/Zhirov | Found Alien Artifact 28287 | -5/Zhirov | Identified Integrated Dissipator 28287 | -5/Zhirov | Installed Integrated Dissipator, increased core heat dissipation (+20) 28413 | -5/Zhirov | Build established: Scavenger-Mutant 28745 | -5/Zhirov | Found Alien Artifact 28948 | -5/Zhirov | Entered Proximity Caves 28986 | -4/Proximity Caves | Learned location of 1 exit from Research 29047 | -4/Proximity Caves | Spotted B-86 Titan 29069 | -4/Proximity Caves | Destroyed B-86 Titan 29169 | -4/Proximity Caves | Learned location of 1 exit from Research 29203 | -4/Proximity Caves | Build established: Scavenger-Tank 29571 | -4/Proximity Caves | Build established: Scavenger-Gunner 29914 | -4/Proximity Caves | Discovered new exit (range 11) 29939 | -4/Proximity Caves | Entered Factory 29939 | -4/Factory | Evolved 2 slots: Utility x1, Weapon x1 30366 | -4/Factory | Garrison activated, responded to threat 30510 | -4/Factory | Joined by Warlord Geek squad 30769 | -4/Factory | Spotted B-86 Titan 30816 | -4/Factory | Destroyed B-86 Titan 30838 | -4/Factory | Spotted Striker 30838 | -4/Factory | Spotted Executioner 30839 | -4/Factory | Cargo convoy interrupted 30844 | -4/Factory | Spotted Executioner 30849 | -4/Factory | Destroyed Striker 30849 | -4/Factory | Destroyed Executioner 30859 | -4/Factory | Destroyed Executioner 30880 | -4/Factory | Destroyed 13 combat bots 30893 | -4/Factory | Core integrity fell below 50% 30898 | -4/Factory | Found Corrupted Prototype Device 30898 | -4/Factory | Identified Exp. Actuator Array 30899 | -4/Factory | System corruption reached 10% 30900 | -4/Factory | Found Corrupted Prototype Launcher 30900 | -4/Factory | Identified Gui. Micro-nuke Launcher 30909 | -4/Factory | Core integrity fell below 20% 30909 | -4/Factory | System corruption reached 30% 30944 | -4/Factory | Lost 22 parts (3p3n9u7w) 30959 | -4/Factory | Sucked down chute 30959 | -4/Factory | Entered Waste 30971 | -4/Waste | Spotted C-40 Crusher 30971 | -4/Waste | Spotted C-40 Crusher 30977 | -4/Waste | Spotted C-40 Crusher 30985 | -4/Waste | Spotted C-40 Crusher 30988 | -4/Waste | Spotted C-40 Crusher 31000 | -4/Waste | Spotted C-40 Crusher 31017 | -4/Waste | Discovered new exit (range 12) 31022 | -4/Waste | Warlord forces began an assault 31026 | -4/Waste | Found Prototype Reactor 31026 | -4/Waste | Identified Vortex Chain Reactor 31028 | -4/Waste | Allies destroyed C-40 Crusher 31074 | -4/Waste | Allies destroyed C-40 Crusher 31084 | -4/Waste | Allies destroyed C-40 Crusher 31101 | -4/Waste | Found Prototype Processor 31101 | -4/Waste | Identified Exp. Armor Integrity Analyzer 31103 | -4/Waste | Lost 6 allies 31217 | -4/Waste | Entered Factory 31217 | -4/Factory | Accompanied by 8 allies 31257 | -4/Factory | Garrison activated, responded to threat 31271 | -4/Factory | Found Prototype Slashing Weapon 31271 | -4/Factory | Identified Centrium Greatsword 31320 | -4/Factory | Found Centrium Greatsword 31391 | -4/Factory | Discovered new exit (range 6) 31393 | -4/Factory | Entered Extension 31557 | -4/Extension | Build established: Hacker-Mutant 31613 | -4/Extension | Destroyed by P-70 Sage with Tesla Rifle Last Messages --------------- 31564_ Field strength at 86. 31565_ Field strength at 79. 31566_ Field strength at 72. 31567_ Field strength at 65. 31568_ System corrupted: Heat flow error (+257). 31568_ Field strength at 58. 31569_ Field strength at 51. 31570_ Field strength at 44. 31571_ Field strength at 37. 31572_ Field strength at 30. 31573_ Field strength at 23. 31574_ Field strength at 16. 31575_ Field strength at 9. 31576_ Field strength at 2. 31577_ Stasis field depleted. 31577_ Connecting with Terminal... 31577_ Current location identified: Extension 31577_ Connecting with Terminal... 31583_ System corrupted: Component data lost. 31602_ TE,|CRSZSTNKXTJ9>/XKJCB2 Map ----- +----------------------------------------------------+ | | | | | | | | | | | | | | | | | | | | | | | | | | | | | | | | | | | | | ?????????????????????????????????????????????????? | | ?????????????????????????????????????????????????? | | ########################?????????????????????????? | | ###########???????????????? | | #???????????????? | | "" """"""" p #???????????????? | | """ """"""" p #??Y????????????? | | "T @###### #??Y????????????? | | """ ^#??????????????????????? | | "" """"""" ^#??????????????????????? | | """"""" ########??????????????????????? | | #?????????????????????????????? | | #?????????????????????????????? | | ##+####### #######?????????????????????????????? | | # #???????????????????????????????????? | | + #???????????????????????????????????? | | / #####???????????????????????????????????? | | #???????????????????????????????????????? | | / #???????????????????????Y???????????????? | | ????????????????????????????????????????? | | ??#######????????????????????????????????????????? | | ?????????????????????????????????????????????????? | | ?????????????????????????????????????????????????? | | ?????????????????????????????????????????????????? | | ?????????????????????????????????????????????????? | | ?????????????????????????????????????????????????? | | ?????????????????????????????????????????????????? | | ?????????????????????????????????????????????????? | | ?????????????????????????????????????????????????? | | ?????????????????????????????????????????????????? | | ?????????????????????????????????????????????????? | | ?????????????????????????????????????????????????? | +----------------------------------------------------+ Best States ------------- Heat Dissipation 86 Coolant Potential 180 Energy Generation 55 Energy Capacity 1100 Matter Stores 500 Matter Capacity 500 Sight Range 16 Terrain Scan Density 10 Jamming Range 16 Additional Mass Support 25 Armor Coverage 600 Resistance: TH 30 Weapon Shielding 90 Weapon Cycling 20 Evasion (%) 61 Targeting Accuracy 8 Launcher Accuracy 80 Target Analysis 8 Armor Integrity Analysis 50 Recoil Reduction 4 Matter Filtering 30 Energy Filtering 30 Particle Charging 20 Kinecelleration 40 Offensive Hacking 47 Defensive Hacking 14 Authchip Count 3 Trap Extractor Capacity 6 Item Schematics ----------------- Cld. Ion Engine | -9/Materials | Scanalyzed Huge Storage Unit | -9/Materials | Scanalyzed Lrg. Storage Unit | -9/Materials | Scanalyzed Adv. Beam Cannon | -9/Materials | Scanalyzed Katana | -9/Materials | Scanalyzed Humpback | -8/Materials | Scanalyzed Lrn. Proton Cannon | -7/Factory | Scanalyzed Matter Filter | -6/Factory | Scanalyzed Imp. Remote Datajack | -6/Zion | Archive Focal Shield | -6/Zion | Archive Imp. System Guard | -6/Zion | Archive Adv. Cryofiber Web | -6/Zion | Archive Adv. Heat Sink | -6/Zion | Archive Phase Cannon | -6/Zion | Archive Wave Gun | -6/Zion | Archive Adv. Signal Interpreter | -6/Zion | Archive Imp. Transmission Jammer | -6/Zion | Archive Falx | -6/Zion | Archive Lgt. Fission Core | -6/Zion | Archive Hvy. Treads | -6/Zion | Archive Nuclear Pulse Thruster | -6/Zion | Archive Assault Drone Bay | -5/Zhirov | Free Exp. Heat Sink | -5/Zhirov | Free Exp. Optical Array | -5/Zhirov | Free Imp. Arc Thrower | -5/Zhirov | Free Robot Schematics ------------------ P-60 Hacker | -7/Factory | Hacked G-47 Trooper | -6/Zion | Archive R-06 Scavenger | -6/Zion | Archive G-50 Soldier | -6/Zion | Archive G-73 Enforcer | -6/Zion | Archive Fabricated ------------ Lrn. Proton Cannon | x1 | -5/Factory | Authchip Alien Tech Used ----------------- Integrated Dissipator Achievements -------------- None Challenges ------------ None Game ------ Seed ImpactProjectionShockpuncher Manual? 0 Play Time 04:38:50 Cumulative 719.7 hours Start 2024.05.13 @ 13:35:41 End 2024.05.13 @ 22:18:06 Sessions 3 Manual Loads 0 Difficulty Rogue Special Mode None Game No. 294 Rogue 265 Adventurer 3 Explorer 26 Win Type - Total 16 Types 10/3/1/1/0/1/0/0/0 Lore% 91 Gallery% 96 Achievement% 85 Wizard Run 0 Options --------- Layout 2 ASCII 0 Keyboard 0 Movement Numpad Keybinds 0 Fullscreen 2 Font 24/Smallcaps Map View 50x44 Zoom Use 0% Tactical HUD 1 Map Filters NONE Filters NONE Steam 1 RUN: a9b58adf-0b0b-4272-817f-f5f1cb1315df